[Event "Polofinale MCR juniorek 2023"]
[Site "Czech Republic"]
[Date "2023.11.17"]
[Round "8.10"]
[White "Stavova, Marketa"]
[Black "Nova, Anezka"]
[Result "1/2-1/2"]
[TimeControl "90 min per 40 moves + 15 min + 30 sec / move from move 1"]
[WhiteFideId "23714824"]
[BlackFideId "23727144"]
[WhiteElo "1433"]
[BlackElo "1578"]

1. e4 {[%clk 01:30:54]} {[%emt 00:00:05]} e6 {[%clk 01:30:55]} {[%emt
00:00:05]} 2. d4 {[%clk 01:30:56]} {[%emt 00:00:28]} d5 {[%clk 01:31:22]}
{[%emt 00:00:04]} 3. Nd2 {[%clk 01:31:00]} {[%emt 00:00:26]} c5 {[%clk
01:31:44]} {[%emt 00:00:08]} 4. c3 {[%clk 01:31:03]} {[%emt 00:00:28]} cxd4
{[%clk 01:30:19]} {[%emt 00:01:55]} 5. cxd4 {[%clk 01:31:14]} {[%emt 00:00:19]}
dxe4 {[%clk 01:29:59]} {[%emt 00:00:50]} 6. Nxe4 {[%clk 01:31:28]} {[%emt
00:00:16]} Nc6 {[%clk 01:29:50]} {[%emt 00:00:40]} 7. Nf3 {[%clk 01:31:03]}
{[%emt 00:00:54]} Nf6 {[%clk 01:28:06]} {[%emt 00:02:14]} 8. Nxf6+ {[%clk
01:30:15]} {[%emt 00:01:18]} Qxf6 {[%clk 01:27:17]} {[%emt 00:01:19]} 9. Bd3
{[%clk 01:29:26]} {[%emt 00:01:19]} Bb4+ {[%clk 01:23:31]} {[%emt 00:04:16]} 10.
Bd2 {[%clk 01:28:27]} {[%emt 00:01:28]} Bxd2+ {[%clk 01:22:15]} {[%emt
00:01:47]} 11. Qxd2 {[%clk 01:28:48]} {[%emt 00:00:09]} O-O {[%clk 01:19:45]}
{[%emt 00:02:59]} 12. O-O {[%clk 01:27:48]} {[%emt 00:01:30]} Rd8 {[%clk
01:17:18]} {[%emt 00:02:57]} 13. Rad1 {[%clk 01:26:15]} {[%emt 00:02:03]} Ne7
{[%clk 01:12:13]} {[%emt 00:05:35]} 14. Rfe1 {[%clk 01:22:07]} {[%emt
00:04:38]} Nd5 {[%clk 01:10:28]} {[%emt 00:02:15]} 15. Bc2 {[%clk 01:19:28]}
{[%emt 00:03:09]} b6 {[%clk 01:05:42]} {[%emt 00:05:17]} 16. Qd3 {[%clk
01:15:27]} {[%emt 00:04:31]} g6 {[%clk 01:03:22]} {[%emt 00:02:50]} 17. Qd2
{[%clk 01:11:18]} {[%emt 00:04:39]} Bb7 {[%clk 00:59:59]} {[%emt 00:03:53]} 18.
Be4 {[%clk 01:08:13]} {[%emt 00:03:35]} Qe7 {[%clk 00:52:01]} {[%emt 00:08:28]}
19. a3 {[%clk 01:06:11]} {[%emt 00:02:32]} Nf6 {[%clk 00:48:04]} {[%emt
00:04:27]} 20. Bxb7 {[%clk 01:05:38]} {[%emt 00:01:04]} Qxb7 {[%clk 00:48:24]}
{[%emt 00:00:09]} 21. Qf4 {[%clk 01:04:56]} {[%emt 00:01:12]} Kg7 {[%clk
00:46:57]} {[%emt 00:01:58]} 22. Ne5 {[%clk 01:02:25]} {[%emt 00:03:00]} Rd5
{[%clk 00:38:11]} {[%emt 00:09:15]} 23. Qh4 {[%clk 00:59:05]} {[%emt 00:03:50]}
Rad8 {[%clk 00:34:27]} {[%emt 00:04:15]} 24. Re2 {[%clk 00:57:09]} {[%emt
00:02:27]} Qc7 {[%clk 00:31:30]} {[%emt 00:03:28]} 25. Red2 {[%clk 00:55:32]}
{[%emt 00:02:06]} h6 {[%clk 00:28:28]} {[%emt 00:03:32]} 26. Qf4 {[%clk
00:54:09]} {[%emt 00:01:53]} g5 {[%clk 00:26:00]} {[%emt 00:02:59]} 27. Qe3
{[%clk 00:51:06]} {[%emt 00:03:32]} Nd7 {[%clk 00:19:38]} {[%emt 00:06:53]} 28.
Nd3 {[%clk 00:48:25]} {[%emt 00:03:11]} a5 {[%clk 00:16:56]} {[%emt 00:03:12]}
29. Nc1 {[%clk 00:44:03]} {[%emt 00:04:52]} Nb8 {[%clk 00:14:07]} {[%emt
00:03:20]} 30. Ne2 {[%clk 00:43:08]} {[%emt 00:01:24]} Qd7 {[%clk 00:11:22]}
{[%emt 00:03:16]} 31. h3 {[%clk 00:37:07]} {[%emt 00:06:31]} Nc6 {[%clk
00:08:53]} {[%emt 00:02:58]} 32. Qb3 {[%clk 00:34:41]} {[%emt 00:02:56]} b5
{[%clk 00:06:54]} {[%emt 00:02:30]} 33. Qf3 {[%clk 00:27:04]} {[%emt 00:08:07]}
b4 {[%clk 00:04:09]} {[%emt 00:03:15]} 34. axb4 {[%clk 00:26:28]} {[%emt
00:01:06]} axb4 {[%clk 00:04:34]} {[%emt 00:00:05]} 35. Kh1 {[%clk 00:23:49]}
{[%emt 00:03:09]} e5 {[%clk 00:03:42]} {[%emt 00:01:22]} 36. Ng3 {[%clk
00:23:54]} {[%emt 00:00:25]} Qe6 {[%clk 00:01:30]} {[%emt 00:02:42]} 37. Re1
{[%clk 00:20:51]} {[%emt 00:03:33]} Nxd4 {[%clk 00:01:20]} {[%emt 00:00:40]} 38.
Qe4 {[%clk 00:16:23]} {[%emt 00:04:59]} f5 {[%clk 00:00:54]} {[%emt 00:00:56]}
39. Qb1 {[%clk 00:15:53]} {[%emt 00:01:00]} Kg6 {[%clk 00:00:46]} {[%emt
00:00:38]} 40. Qa2 {[%clk 00:14:08]} {[%emt 00:02:15]} b3 {[%clk 00:00:50]}
{[%emt 00:00:26]} 41. Qa4 {[%clk 00:13:08]} {[%emt 00:01:30]} h5 {[%clk
00:00:36]} {[%emt 00:00:44]} 42. Red1 {[%clk 00:11:55]} {[%emt 00:01:43]} Qd7
{[%clk 00:12:11]} {[%emt 00:04:25]} 43. Qa6+ {[%clk 00:27:11]} {[%emt
00:01:14]} Qd6 {[%clk 00:11:37]} {[%emt 00:01:05]} 44. Qa4 {[%clk 00:26:39]}
{[%emt 00:01:02]} g4 {[%clk 00:10:31]} {[%emt 00:01:36]} 45. Ne2 {[%clk
00:23:20]} {[%emt 00:03:49]} Qd7 {[%clk 00:07:19]} {[%emt 00:03:42]} 46. Qxd7
{[%clk 00:20:17]} {[%emt 00:03:33]} R5xd7 {[%clk 00:06:49]} {[%emt 00:01:00]}
47. hxg4 {[%clk 00:20:09]} {[%emt 00:00:39]} hxg4 {[%clk 00:07:01]} {[%emt
00:00:18]} 48. g3 {[%clk 00:19:03]} {[%emt 00:01:35]} Kf6 {[%clk 00:05:57]}
{[%emt 00:01:34]} 49. Kg2 {[%clk 00:16:15]} {[%emt 00:03:18]} Ke6 {[%clk
00:05:33]} {[%emt 00:00:55]} 50. Nc1 {[%clk 00:16:27]} {[%emt 00:00:18]} Nf3
{[%clk 00:04:03]} {[%emt 00:02:00]} 51. Rxd7 {[%clk 00:15:57]} {[%emt
00:00:59]} Rxd7 {[%clk 00:04:27]} {[%emt 00:00:06]} 52. Rxd7 {[%clk 00:16:02]}
{[%emt 00:00:25]} Kxd7 {[%clk 00:04:54]} {[%emt 00:00:03]} 53. Nxb3 {[%clk
00:15:24]} {[%emt 00:01:08]} Ne1+ {[%clk 00:05:16]} {[%emt 00:00:08]} 54. Kf1
{[%clk 00:15:42]} {[%emt 00:00:12]} Nd3 {[%clk 00:05:40]} {[%emt 00:00:06]} 55.
Ke2 {[%clk 00:15:54]} {[%emt 00:00:18]} Nxb2 {[%clk 00:05:59]} {[%emt
00:00:11]} 56. Nc5+ {[%clk 00:15:29]} {[%emt 00:00:55]} Kd6 {[%clk 00:06:11]}
{[%emt 00:00:17]} 57. Nb7+ {[%clk 00:15:30]} {[%emt 00:00:29]} Kd5 {[%clk
00:05:31]} {[%emt 00:01:11]} 58. Nd8 {[%clk 00:14:35]} {[%emt 00:01:24]} Nc4
{[%clk 00:04:37]} {[%emt 00:01:25]} 59. Nf7 {[%clk 00:14:27]} {[%emt 00:00:38]}
Nd6 {[%clk 00:03:30]} {[%emt 00:01:37]} 60. Nh6 {[%clk 00:13:50]} {[%emt
00:01:07]} Ke6 {[%clk 00:03:09]} {[%emt 00:00:51]} 61. f3 {[%clk 00:13:12]}
{[%emt 00:01:08]} gxf3+ {[%clk 00:03:25]} {[%emt 00:00:14]} 62. Kxf3 {[%clk
00:13:29]} {[%emt 00:00:13]} Kf6 {[%clk 00:02:40]} {[%emt 00:01:15]} 63. g4
{[%clk 00:12:59]} {[%emt 00:01:00]} f4 {[%clk 00:02:31]} {[%emt 00:00:39]} 64.
Ng8+ {[%clk 00:13:01]} {[%emt 00:00:28]} Kf7 {[%clk 00:02:26]} {[%emt
00:00:35]} 65. Nh6+ {[%clk 00:13:06]} {[%emt 00:00:25]} Kg7 {[%clk 00:02:24]}
{[%emt 00:00:33]} 66. g5 {[%clk 00:12:52]} {[%emt 00:00:44]} Kg6 {[%clk
00:02:03]} {[%emt 00:00:51]} 67. Kg4 {[%clk 00:10:19]} {[%emt 00:03:03]} Nf7
{[%clk 00:01:47]} {[%emt 00:00:46]} 68. Nf5 {[%clk 00:08:40]} {[%emt 00:02:08]}
Nxg5 {[%clk 00:01:51]} {[%emt 00:00:27]} 69. Ne7+ {[%clk 00:09:01]} {[%emt
00:00:09]} Kf7 {[%clk 00:01:43]} {[%emt 00:00:38]} 70. Nd5 {[%clk 00:09:00]}
{[%emt 00:00:31]} Ne6 {[%clk 00:01:06]} {[%emt 00:01:07]} 71. Kf5 {[%clk
00:09:19]} {[%emt 00:00:11]} f3 {[%clk 00:01:02]} {[%emt 00:00:35]} 72. Kxe5
{[%clk 00:09:24]} {[%emt 00:00:25]} f2 {[%clk 00:00:43]} {[%emt 00:00:49]} 73.
Ne3 {[%clk 00:09:49]} {[%emt 00:00:05]} Ng5 {[%clk 00:00:38]} {[%emt 00:00:34]}
74. Kf4 {[%clk 00:10:09]} {[%emt 00:00:10]} Kf6 {[%clk 00:00:34]} {[%emt
00:00:34]} 75. Ng4+ {[%clk 00:10:28]} {[%emt 00:00:11]} Ke5+ {[%emt 00:00:54]}
76. Ke4+ 1/2-1/2

[Event "Polofinale MCR juniorek 2023"]
[Site "Czech Republic"]
[Date "2023.11.18"]
[Round "9.1"]
[White "Buchtova, Viktorie"]
[Black "Nagyova, Daniela"]
[Result "1/2-1/2"]
[TimeControl "90 min per 40 moves + 15 min + 30 sec / move from move 1"]
[WhiteFideId "23714786"]
[BlackFideId "390070"]
[WhiteElo "1801"]
[BlackElo "1872"]

1. e4 {[%clk 01:30:58]} {[%emt 00:00:02]} e5 {[%clk 01:30:46]} {[%emt
00:00:13]} 2. Nf3 {[%clk 01:31:24]} {[%emt 00:00:03]} Nc6 {[%clk 01:31:04]}
{[%emt 00:00:12]} 3. Bb5 {[%clk 01:31:48]} {[%emt 00:00:07]} a6 {[%clk
01:30:58]} {[%emt 00:00:36]} 4. Ba4 {[%clk 01:32:13]} {[%emt 00:00:04]} Nf6
{[%clk 01:30:36]} {[%emt 00:00:52]} 5. O-O {[%clk 01:32:05]} {[%emt 00:00:38]}
Be7 {[%clk 01:30:22]} {[%emt 00:00:44]} 6. Re1 {[%clk 01:31:57]} {[%emt
00:00:39]} b5 {[%clk 01:30:21]} {[%emt 00:00:31]} 7. Bb3 {[%clk 01:32:14]}
{[%emt 00:00:12]} O-O {[%clk 01:30:16]} {[%emt 00:00:35]} 8. c3 {[%clk
01:32:37]} {[%emt 00:00:08]} d5 {[%clk 01:29:30]} {[%emt 00:01:16]} 9. exd5
{[%clk 01:27:15]} {[%emt 00:05:51]} Nxd5 {[%clk 01:29:32]} {[%emt 00:00:28]} 10.
d4 {[%clk 01:23:46]} {[%emt 00:04:00]} exd4 {[%clk 01:28:01]} {[%emt 00:02:00]}
11. Nxd4 {[%clk 01:23:16]} {[%emt 00:01:02]} Nxd4 {[%clk 01:27:11]} {[%emt
00:01:19]} 12. Qxd4 {[%clk 01:22:12]} {[%emt 00:01:34]} Bb7 {[%clk 01:25:21]}
{[%emt 00:02:21]} 13. Nd2 {[%clk 01:11:35]} {[%emt 00:11:07]} Bf6 {[%clk
01:18:49]} {[%emt 00:07:02]} 14. Qg4 {[%clk 01:08:58]} {[%emt 00:03:06]} Re8
{[%clk 01:08:11]} {[%emt 00:11:08]} 15. Ne4 {[%clk 01:06:58]} {[%emt 00:02:30]}
Be5 {[%clk 01:01:48]} {[%emt 00:06:53]} 16. Bg5 {[%clk 01:04:30]} {[%emt
00:02:58]} Qc8 {[%clk 00:55:39]} {[%emt 00:06:40]} 17. Qxc8 {[%clk 01:04:29]}
{[%emt 00:01:00]} Raxc8 {[%clk 00:56:18]} {[%emt 00:00:20]} 18. Nc5 {[%clk
01:04:36]} {[%emt 00:00:24]} Ba8 {[%clk 00:52:29]} {[%emt 00:04:19]} 1/2-1/2

[Event "Polofinale MCR juniorek 2023"]
[Site "Czech Republic"]
[Date "2023.11.18"]
[Round "9.2"]
[White "Jakubse, Tamae Severina"]
[Black "Brezikova, Beata"]
[Result "1-0"]
[TimeControl "90 min per 40 moves + 15 min + 30 sec / move from move 1"]
[WhiteFideId "23745975"]
[BlackFideId "23727250"]
[WhiteElo "1679"]
[BlackElo "1622"]

1. e4 {[%clk 01:30:57]} {[%emt 00:00:02]} e5 {[%clk 01:30:57]} {[%emt
00:00:04]} 2. Nf3 {[%clk 01:31:23]} {[%emt 00:00:04]} Nc6 {[%clk 01:31:24]}
{[%emt 00:00:04]} 3. d4 {[%clk 01:31:50]} {[%emt 00:00:03]} exd4 {[%clk
01:31:49]} {[%emt 00:00:05]} 4. Nxd4 {[%clk 01:32:14]} {[%emt 00:00:05]} Bc5
{[%clk 01:32:08]} {[%emt 00:00:11]} 5. Be3 {[%clk 01:32:22]} {[%emt 00:00:23]}
Qf6 {[%clk 01:32:30]} {[%emt 00:00:07]} 6. c3 {[%clk 01:32:39]} {[%emt
00:00:13]} Nge7 {[%clk 01:32:51]} {[%emt 00:00:10]} 7. Bb5 {[%clk 01:32:27]}
{[%emt 00:00:42]} a6 {[%clk 01:26:07]} {[%emt 00:07:15]} 8. Ba4 {[%clk
01:32:29]} {[%emt 00:00:28]} b5 {[%clk 01:21:00]} {[%emt 00:05:37]} 9. Bb3
{[%clk 01:30:29]} {[%emt 00:02:29]} Na5 {[%clk 01:19:27]} {[%emt 00:02:03]} 10.
O-O {[%clk 01:22:18]} {[%emt 00:08:41]} O-O {[%clk 01:14:02]} {[%emt 00:05:55]}
11. Nd2 {[%clk 01:17:56]} {[%emt 00:04:52]} Bb7 {[%clk 01:10:01]} {[%emt
00:04:31]} 12. Bc2 {[%clk 01:07:51]} {[%emt 00:10:35]} Ba7 {[%clk 01:08:03]}
{[%emt 00:02:28]} 13. b4 {[%clk 01:04:00]} {[%emt 00:04:21]} Nac6 {[%clk
01:07:36]} {[%emt 00:00:56]} 14. N2f3 {[%clk 01:03:28]} {[%emt 00:01:02]} h6
{[%clk 01:03:31]} {[%emt 00:04:35]} 15. Qd3 {[%clk 00:54:28]} {[%emt 00:09:30]}
Ng6 {[%clk 01:00:27]} {[%emt 00:03:34]} 16. a4 {[%clk 00:46:38]} {[%emt
00:08:20]} Nce5 {[%clk 00:54:02]} {[%emt 00:06:54]} 17. Nxe5 {[%clk 00:45:25]}
{[%emt 00:01:43]} Nxe5 {[%clk 00:54:18]} {[%emt 00:00:14]} 18. Qe2 {[%clk
00:45:19]} {[%emt 00:00:36]} c6 {[%clk 00:47:42]} {[%emt 00:07:06]} 19. f4
{[%clk 00:39:42]} {[%emt 00:06:07]} Ng6 {[%clk 00:42:11]} {[%emt 00:06:01]} 20.
e5 {[%clk 00:36:05]} {[%emt 00:04:07]} Qe7 {[%clk 00:41:10]} {[%emt 00:01:31]}
21. Nf5 {[%clk 00:33:21]} {[%emt 00:03:14]} Bxe3+ {[%clk 00:38:00]} {[%emt
00:03:40]} 22. Qxe3 {[%clk 00:33:28]} {[%emt 00:00:23]} Qd8 {[%clk 00:37:23]}
{[%emt 00:01:07]} 23. Nd6 {[%clk 00:32:11]} {[%emt 00:01:48]} Qc7 {[%clk
00:36:43]} {[%emt 00:01:10]} 24. f5 {[%clk 00:31:09]} {[%emt 00:01:32]} Ne7
{[%clk 00:35:10]} {[%emt 00:02:03]} 25. f6 {[%clk 00:28:56]} {[%emt 00:02:43]}
Ng6 {[%clk 00:32:12]} {[%emt 00:03:27]} 26. fxg7 {[%clk 00:28:50]} {[%emt
00:00:37]} Kxg7 {[%clk 00:30:41]} {[%emt 00:02:00]} 27. Nf5+ {[%clk 00:29:12]}
{[%emt 00:00:08]} Kg8 {[%clk 00:30:35]} {[%emt 00:00:35]} 28. Qxh6 {[%clk
00:29:26]} {[%emt 00:00:17]} Qxe5 {[%clk 00:30:19]} {[%emt 00:00:46]} 29. Rf3
{[%clk 00:25:03]} {[%emt 00:04:52]} Rfe8 {[%clk 00:26:09]} {[%emt 00:04:41]} 30.
Raf1 {[%clk 00:19:17]} {[%emt 00:06:16]} c5 {[%clk 00:22:38]} {[%emt 00:04:01]}
31. Rh3 {[%clk 00:15:23]} {[%emt 00:04:23]} Qh8 {[%clk 00:19:48]} {[%emt
00:03:21]} 32. Qg5 {[%clk 00:14:49]} {[%emt 00:01:05]} Qe5 {[%clk 00:18:46]}
{[%emt 00:01:33]} 33. Nh6+ {[%clk 00:15:04]} {[%emt 00:00:14]} Kg7 {[%clk
00:18:53]} {[%emt 00:00:23]} 34. Rxf7+ {[%clk 00:15:23]} {[%emt 00:00:11]} Kh8
{[%clk 00:19:01]} {[%emt 00:00:22]} 35. Nf5+ {[%clk 00:15:42]} {[%emt
00:00:11]} Kg8 {[%clk 00:19:17]} {[%emt 00:00:14]} 36. Qxg6+ {[%clk 00:16:06]}
{[%emt 00:00:07]} Qg7 {[%clk 00:19:35]} {[%emt 00:00:11]} 37. Qxg7# {[%clk
00:16:30]} {[%emt 00:00:06]} 1-0

[Event "Polofinale MCR juniorek 2023"]
[Site "Czech Republic"]
[Date "2023.11.18"]
[Round "9.3"]
[White "Petirova, Iva"]
[Black "Markina, Sofiia"]
[Result "1-0"]
[TimeControl "90 min per 40 moves + 15 min + 30 sec / move from move 1"]
[WhiteFideId "23741961"]
[BlackFideId "23744014"]
[WhiteElo "1636"]
[BlackElo "1563"]

1. e4 {[%clk 01:30:57]} {[%emt 00:00:01]} c6 {[%clk 01:30:57]} {[%emt
00:00:04]} 2. d4 {[%clk 01:31:19]} {[%emt 00:00:08]} d5 {[%clk 01:31:22]}
{[%emt 00:00:05]} 3. Nc3 {[%clk 01:31:33]} {[%emt 00:00:16]} dxe4 {[%clk
01:31:41]} {[%emt 00:00:11]} 4. Nxe4 {[%clk 01:31:51]} {[%emt 00:00:11]} Nf6
{[%clk 01:32:02]} {[%emt 00:00:09]} 5. Nxf6+ {[%clk 01:32:02]} {[%emt
00:00:19]} exf6 {[%clk 01:32:25]} {[%emt 00:00:08]} 6. c3 {[%clk 01:31:59]}
{[%emt 00:00:33]} Bd6 {[%clk 01:32:29]} {[%emt 00:00:25]} 7. Bd3 {[%clk
01:31:35]} {[%emt 00:00:54]} O-O {[%clk 01:31:54]} {[%emt 00:01:05]} 8. Qc2
{[%clk 01:30:52]} {[%emt 00:01:13]} Re8+ {[%clk 01:31:14]} {[%emt 00:01:11]} 9.
Ne2 {[%clk 01:29:45]} {[%emt 00:01:36]} g6 {[%clk 01:25:21]} {[%emt 00:06:23]}
10. O-O {[%clk 01:20:05]} {[%emt 00:10:10]} Qc7 {[%clk 01:17:57]} {[%emt
00:07:55]} 11. g3 {[%clk 01:17:45]} {[%emt 00:02:49]} Bh3 {[%clk 01:11:19]}
{[%emt 00:07:08]} 12. Re1 {[%clk 01:17:23]} {[%emt 00:00:52]} f5 {[%clk
01:05:27]} {[%emt 00:06:23]} 13. Bd2 {[%clk 01:13:05]} {[%emt 00:04:48]} Nd7
{[%clk 01:04:56]} {[%emt 00:01:01]} 14. Nf4 {[%clk 01:12:49]} {[%emt 00:00:46]}
Bg4 {[%clk 01:01:23]} {[%emt 00:04:03]} 15. Kg2 {[%clk 01:08:07]} {[%emt
00:05:12]} g5 {[%clk 00:50:01]} {[%emt 00:11:52]} 16. Ne2 {[%clk 01:04:10]}
{[%emt 00:04:26]} f4 {[%clk 00:48:51]} {[%emt 00:01:41]} 17. f3 {[%clk
00:57:02]} {[%emt 00:07:38]} Bh5 {[%clk 00:29:48]} {[%emt 00:19:32]} 18. Bxh7+
{[%clk 00:49:33]} {[%emt 00:07:59]} Kg7 {[%clk 00:28:31]} {[%emt 00:01:47]} 19.
Qf5 {[%clk 00:38:53]} {[%emt 00:11:11]} Kh6 {[%clk 00:15:52]} {[%emt 00:13:10]}
20. h4 {[%clk 00:28:56]} {[%emt 00:10:26]} fxg3 {[%clk 00:04:12]} {[%emt
00:12:10]} 21. hxg5+ {[%clk 00:19:32]} {[%emt 00:09:54]} Kg7 {[%clk 00:04:31]}
{[%emt 00:00:11]} 22. Nf4 {[%clk 00:19:02]} {[%emt 00:00:59]} Bxf4 {[%clk
00:01:40]} {[%emt 00:03:22]} 23. Bxf4 {[%clk 00:19:24]} {[%emt 00:00:08]} Qd8
{[%clk 00:01:30]} {[%emt 00:00:39]} 24. Rh1 {[%clk 00:13:51]} {[%emt 00:06:04]}
Bg6 {[%clk 00:01:33]} {[%emt 00:00:28]} 25. Qh3 {[%clk 00:13:47]} {[%emt
00:00:33]} Re2+ {[%clk 00:01:12]} {[%emt 00:00:52]} 26. Kxg3 {[%clk 00:14:00]}
{[%emt 00:00:17]} Bxh7 {[%clk 00:01:19]} {[%emt 00:00:23]} 27. Qxh7+ {[%clk
00:13:52]} {[%emt 00:00:38]} Kf8 {[%clk 00:01:40]} {[%emt 00:00:09]} 28. Bd6+
{[%clk 00:14:11]} {[%emt 00:00:11]} Ke8 {[%clk 00:01:44]} {[%emt 00:00:27]} 29.
Qg8+ {[%clk 00:13:30]} {[%emt 00:01:11]} Nf8 {[%clk 00:02:10]} {[%emt
00:00:04]} 30. Qxf8+ {[%clk 00:12:50]} {[%emt 00:01:10]} Kd7 {[%clk 00:02:36]}
{[%emt 00:00:04]} 31. Qxf7+ {[%clk 00:12:11]} {[%emt 00:01:09]} Kc8 {[%clk
00:02:41]} {[%emt 00:00:24]} 32. Qf5+ {[%clk 00:12:31]} {[%emt 00:00:12]} 1-0

[Event "Polofinale MCR juniorek 2023"]
[Site "Czech Republic"]
[Date "2023.11.18"]
[Round "9.4"]
[White "Sulcova, Tereza Radmila"]
[Black "Sikorova, Jana"]
[Result "1/2-1/2"]
[TimeControl "90 min per 40 moves + 15 min + 30 sec / move from move 1"]
[WhiteFideId "395196"]
[BlackFideId "392472"]
[WhiteElo "1671"]
[BlackElo "1662"]

1. e4 {[%clk 01:30:55]} {[%emt 00:00:03]} c5 {[%clk 01:30:51]} {[%emt
00:00:10]} 2. Nc3 {[%clk 01:31:14]} {[%emt 00:00:12]} e6 {[%clk 01:31:12]}
{[%emt 00:00:08]} 3. g3 {[%clk 01:31:36]} {[%emt 00:00:08]} d5 {[%clk
01:31:12]} {[%emt 00:00:30]} 4. d3 {[%clk 01:28:08]} {[%emt 00:03:58]} Nc6
{[%clk 01:30:18]} {[%emt 00:01:24]} 5. Bg2 {[%clk 01:27:57]} {[%emt 00:00:42]}
Nf6 {[%clk 01:29:35]} {[%emt 00:01:13]} 6. Nge2 {[%clk 01:26:02]} {[%emt
00:02:25]} Be7 {[%clk 01:27:48]} {[%emt 00:02:16]} 7. O-O {[%clk 01:24:37]}
{[%emt 00:01:55]} O-O {[%clk 01:27:12]} {[%emt 00:01:06]} 8. Qe1 {[%clk
01:19:15]} {[%emt 00:05:52]} h6 {[%clk 01:24:38]} {[%emt 00:03:04]} 9. a3
{[%clk 01:08:13]} {[%emt 00:11:32]} b6 {[%clk 01:23:08]} {[%emt 00:02:00]} 10.
exd5 {[%clk 01:03:55]} {[%emt 00:04:48]} exd5 {[%clk 01:19:10]} {[%emt
00:04:28]} 11. Nf4 {[%clk 01:03:35]} {[%emt 00:00:50]} Re8 {[%clk 01:15:02]}
{[%emt 00:04:38]} 12. Nfxd5 {[%clk 01:00:01]} {[%emt 00:04:05]} Bb7 {[%clk
01:14:10]} {[%emt 00:01:21]} 13. Nxf6+ {[%clk 00:55:00]} {[%emt 00:05:32]} Bxf6
{[%clk 01:13:36]} {[%emt 00:01:03]} 14. Be3 {[%clk 00:55:00]} {[%emt 00:00:30]}
Qd7 {[%clk 01:10:52]} {[%emt 00:03:14]} 15. Qd2 {[%clk 00:47:49]} {[%emt
00:07:41]} Nd4 {[%clk 01:08:28]} {[%emt 00:02:53]} 16. Bxb7 {[%clk 00:45:12]}
{[%emt 00:03:08]} Qxb7 {[%clk 01:08:25]} {[%emt 00:00:32]} 17. Bxd4 {[%clk
00:45:14]} {[%emt 00:00:29]} Bxd4 {[%clk 01:08:13]} {[%emt 00:00:42]} 18. Rae1
{[%clk 00:45:02]} {[%emt 00:00:42]} Qf3 {[%clk 01:02:02]} {[%emt 00:06:41]} 19.
b3 {[%clk 00:40:11]} {[%emt 00:05:21]} h5 {[%clk 00:54:20]} {[%emt 00:08:12]}
20. Ne2 {[%clk 00:36:28]} {[%emt 00:04:12]} Be5 {[%clk 00:50:07]} {[%emt
00:04:43]} 21. Nc3 {[%clk 00:27:29]} {[%emt 00:09:30]} h4 {[%clk 00:47:28]}
{[%emt 00:03:09]} 22. Re3 {[%clk 00:26:38]} {[%emt 00:01:21]} Bxc3 {[%clk
00:44:37]} {[%emt 00:03:21]} 23. Qxc3 {[%clk 00:25:44]} {[%emt 00:01:23]} Rxe3
{[%clk 00:44:24]} {[%emt 00:00:43]} 24. fxe3 {[%clk 00:26:04]} {[%emt
00:00:11]} Qxe3+ {[%clk 00:44:37]} {[%emt 00:00:16]} 25. Kg2 {[%clk 00:26:26]}
{[%emt 00:00:08]} Re8 {[%clk 00:43:11]} {[%emt 00:01:55]} 26. Qc4 {[%clk
00:26:14]} {[%emt 00:00:43]} Qe2+ {[%clk 00:38:06]} {[%emt 00:05:34]} 27. Kg1
{[%clk 00:25:12]} {[%emt 00:01:31]} Re6 {[%clk 00:27:37]} {[%emt 00:11:00]} 28.
Qxh4 {[%clk 00:18:54]} {[%emt 00:06:48]} 1/2-1/2

[Event "Polofinale MCR juniorek 2023"]
[Site "Czech Republic"]
[Date "2023.11.18"]
[Round "9.5"]
[White "Stastna, Martina"]
[Black "Bartova, Hana"]
[Result "1-0"]
[TimeControl "90 min per 40 moves + 15 min + 30 sec / move from move 1"]
[WhiteFideId "385123"]
[BlackFideId "23732695"]
[WhiteElo "1940"]
[BlackElo "1270"]

1. e4 {[%clk 01:30:57]} {[%emt 00:00:02]} e5 {[%clk 01:30:44]} {[%emt
00:00:16]} 2. Nf3 {[%clk 01:31:00]} {[%emt 00:00:26]} Nf6 {[%clk 01:30:39]}
{[%emt 00:00:36]} 3. Nxe5 {[%clk 01:28:55]} {[%emt 00:02:35]} d6 {[%clk
01:30:59]} {[%emt 00:00:10]} 4. Nf3 {[%clk 01:29:20]} {[%emt 00:00:04]} Nxe4
{[%clk 01:31:20]} {[%emt 00:00:10]} 5. Nc3 {[%clk 01:29:39]} {[%emt 00:00:11]}
Nf6 {[%clk 01:31:33]} {[%emt 00:00:18]} 6. d4 {[%clk 01:28:54]} {[%emt
00:01:14]} d5 {[%clk 01:31:55]} {[%emt 00:00:08]} 7. Bg5 {[%clk 01:26:49]}
{[%emt 00:02:35]} Be7 {[%clk 01:29:59]} {[%emt 00:02:27]} 8. Qd2 {[%clk
01:22:36]} {[%emt 00:04:42]} O-O {[%clk 01:10:45]} {[%emt 00:19:44]} 9. O-O-O
{[%clk 01:20:47]} {[%emt 00:02:19]} Bf5 {[%clk 01:08:43]} {[%emt 00:02:32]} 10.
Ne5 {[%clk 01:15:30]} {[%emt 00:05:47]} Nbd7 {[%clk 01:05:51]} {[%emt
00:03:22]} 11. h4 {[%clk 01:06:48]} {[%emt 00:09:13]} c6 {[%clk 00:54:00]}
{[%emt 00:12:22]} 12. f3 {[%clk 01:03:52]} {[%emt 00:03:25]} Nxe5 {[%clk
00:52:15]} {[%emt 00:02:15]} 13. dxe5 {[%clk 01:03:10]} {[%emt 00:01:11]} Nd7
{[%clk 00:51:37]} {[%emt 00:01:09]} 14. g4 {[%clk 00:59:42]} {[%emt 00:03:58]}
Bxg5 {[%clk 00:43:15]} {[%emt 00:08:53]} 15. hxg5 {[%clk 00:54:01]} {[%emt
00:06:10]} Bxg4 {[%clk 00:37:26]} {[%emt 00:06:19]} 16. fxg4 {[%clk 00:52:48]}
{[%emt 00:01:43]} Nxe5 {[%clk 00:37:25]} {[%emt 00:00:31]} 17. Bd3 {[%clk
00:45:01]} {[%emt 00:08:18]} Nxd3+ {[%clk 00:36:21]} {[%emt 00:01:34]} 18. cxd3
{[%clk 00:44:29]} {[%emt 00:01:01]} g6 {[%clk 00:34:06]} {[%emt 00:02:45]} 19.
Rdf1 {[%clk 00:41:03]} {[%emt 00:03:55]} Kg7 {[%clk 00:32:10]} {[%emt
00:02:27]} 20. Rxh7+ {[%clk 00:37:07]} {[%emt 00:04:26]} 1-0